bitfinex/quotes_ETHUSD_20250414
["timestamp","ask_amount","ask_price","bid_price","bid_amount"]
[1744631989374,12.77249,1674.7,1674.4,5.97219]
[1744631989805,6.80114,1674.7,1674.4,5.97219]
[1744631990098,6.80114,1674.7,1674.3,5.97255]
[1744631990099,5.9716,1674.6,1674.3,11.9451]
[1744631990301,5.9716,1674.6,1674.3,13.21796]
[1744631990503,5.9716,1674.6,1674.3,7.24541]
[1744631990703,5.97194,1674.5,1674.2,11.94579]
[1744631991315,5.9716,1674.6,1674.3,5.97255]
[1744631991603,11.94336,1674.6,1674.3,5.97255]
[1744631992103,11.94336,1674.6,1674.2,11.94578]
[1744631993104,6.80116,1674.7,1674.4,5.97227]
[1744631993300,6.80116,1674.7,1674.1,6.80471]
[1744631993301,4.48704173,1674.7,1674.2,5.97293]
[1744631993505,5.97184,1674.6,1674.2,11.94581]
[1744631994906,11.94375,1674.6,1674.2,11.94581]
[1744631995302,5.97184,1674.6,1674.3,5.97264]
[1744631995505,11.94358,1674.6,1674.3,5.97264]
[1744631996605,10.45832173,1674.7,1674.3,5.97264]
[1744631996810,3.8299,1674.7,1674.4,5.97228]
[1744631996975,3.8299,1674.7,1674.4,11.94444]
[1744631997175,3.8299,1674.7,1674.4,5.97216]
[1744631997487,9.80121,1674.7,1674.4,11.94433]
[1744631997698,9.80121,1674.7,1674.4,5.97216]
[1744631998615,15.77257,1674.7,1674.4,5.97216]
[1744631998824,5.97158,1674.6,1674.3,7.167082]
[1744631999116,5.97158,1674.6,1674.4,0.7167082]
[1744631999318,5.97158,1674.6,1674.3,7.167082]
[1744631999821,5.97158,1674.6,1674.3,1.194552]
[1744631999822,5.97196,1674.5,1674.3,1.194552]
[1744632000119,5.97196,1674.5,1674.2,11.9458]
[1744632000327,11.94334,1674.6,1674.3,5.97249]
[1744632000502,5.97158,1674.6,1674.3,11.94503]
[1744632000818,0.7818,1675.0,1674.4,9.83890904]
[1744632001134,0.7818,1675.0,1674.8,5.97072]
[1744632002302,6.75198,1675.0,1674.7,6.80114]
[1744632002509,3.0,1675.1,1674.9,5.97039]
[1744632002720,3.0,1675.1,1674.8,5.97076]
[1744632003119,0.7685,1675.0,1674.7,5.97108]
[1744632003320,0.7685,1675.3,1674.7,3.76542573]
[1744632003522,0.05,1675.4,1675.2,5.96943]
[1744632003828,0.79453344,1675.4,1675.1,6.02918656]
[1744632004031,5.9692,1675.3,1675.0,5.97008]
[1744632004323,5.9699,1675.1,1674.8,0.8081]
[1744632004523,3.0,1675.1,1674.9,5.97045]
[1744632004712,0.8099,1675.2,1674.9,5.9705]
[1744632004914,0.8576,1675.4,1675.1,5.96979]
[1744632005100,6.82644,1675.4,1675.1,5.96979]
[1744632005293,6.82644,1675.4,1675.1,5.96961]
[1744632006099,5.96947,1675.2,1674.9,5.97036]
[1744632006299,6.82635,1675.4,1674.8,6.77895]
[1744632006500,12.79526,1675.4,1675.0,5.96998]
[1744632006854,6.82635,1675.4,1675.1,5.96964]
[1744632007055,0.8576,1675.4,1675.1,11.93932]
[1744632007228,0.8576,1675.4,1675.2,5.96932]
[1744632007618,0.05,1675.4,1675.2,5.96932]
[1744632007930,0.05,1675.4,1675.3,6.85306734]
[1744632008140,0.05,1675.4,1675.3,5.96908]
[1744632008540,5.96959,1675.2,1674.9,6.74527]
[1744632008722,5.96959,1675.2,1674.9,13.987211]
[1744632008923,5.96959,1675.2,1674.9,8.016841]
[1744632009127,9.77389,1675.4,1674.7,3.77622573]
[1744632009307,9.77389,1675.4,1675.0,5.96986]
[1744632009925,11.93854,1675.3,1675.0,5.96986]
[1744632010127,5.96923,1675.3,1675.0,5.97]
[1744632010315,3.8051,1675.4,1675.1,5.96958]
[1744632010519,9.77393,1675.4,1675.1,5.96958]
[1744632010725,15.74283,1675.4,1675.0,12.69972]
[1744632010919,15.74283,1675.4,1675.0,13.969692]
[1744632011220,15.74284,1675.4,1675.0,13.969692]
[1744632011421,15.74292,1675.4,1675.0,7.999632]
[1744632011629,9.77393,1675.4,1675.1,5.96964]
[1744632011948,3.8051,1675.4,1675.1,11.93931]
[1744632012125,9.77383,1675.4,1675.1,5.96964]
[1744632012321,0.8051,1675.4,1675.1,11.93926]
[1744632012526,0.8051,1675.4,1675.1,13.2601832]
[1744632012723,0.8051,1675.4,1675.2,5.96927]
[1744632012923,0.05,1675.4,1675.2,5.96927]
[1744632013159,0.05,1675.4,1675.1,5.96944]
[1744632013364,0.05,1675.4,1675.1,11.939]
[1744632013539,0.05,1675.4,1675.3,5.96908]
[1744632013876,0.05,1675.4,1675.1,5.96971]
[1744632014040,0.7736,1675.3,1675.0,5.96999]
[1744632014374,12.71219,1675.3,1674.9,5.97046]
[1744632014538,11.93914,1675.2,1674.9,5.97046]
[1744632014741,6.79836,1675.0,1674.6,5.97127]
[1744632015035,0.8281,1675.0,1674.7,5.97099]
[1744632015264,0.8281,1675.0,1674.7,11.94207]
[1744632015461,0.8281,1675.0,1674.8,5.97081]
[1744632015651,3.0,1675.1,1674.8,6.72483]
[1744632015850,5.96998,1675.1,1674.7,6.80417]
[1744632016049,5.96998,1675.1,1674.7,0.8331]
[1744632016050,3.0,1675.1,1674.7,0.8331]
[1744632016264,3.0,1675.1,1674.9,5.97043]
[1744632016442,6.76153,1675.2,1674.9,5.97043]
[1744632017061,5.96993,1675.1,1674.8,5.97081]
[1744632017453,5.96993,1675.1,1674.8,11.94154]
[1744632017655,5.96993,1675.1,1674.8,13.219004]
[1744632017974,12.73112,1675.2,1674.8,13.219004]
[1744632018181,0.7921,1675.2,1674.8,1.277464]
[1744632018384,3.0,1675.3,1675.0,6.73861]
[1744632018556,3.0,1675.3,1675.1,5.96964]
[1744632018956,3.0,1675.3,1675.0,6.73886]
[1744632018957,3.0,1675.3,1675.0,12.70892]
[1744632019157,3.0,1675.3,1675.0,6.73886]
[1744632019653,0.8264,1675.4,1675.2,5.9693]
[1744632019853,5.9694,1675.3,1675.0,0.7688]
[1744632020059,0.8264,1675.4,1675.0,6.643966]
[1744632020254,0.8264,1675.4,1675.2,5.96933]
[1744632020483,0.05,1675.4,1675.1,5.96975]
[1744632020687,6.01879,1675.4,1675.1,5.96975]
[1744632020895,11.98772,1675.4,1675.1,5.96973]
[1744632021061,0.05,1675.4,1675.1,5.96968]
[1744632021460,6.01875,1675.4,1675.1,5.96968]
[1744632021756,0.05,1675.4,1675.1,11.93934]
[1744632021960,0.05,1675.4,1675.2,6.02906804]
[1744632022283,6.01872,1675.4,1675.1,11.93934]
[1744632022588,0.05,1675.4,1675.1,11.93934]
[1744632022888,6.01873,1675.4,1675.1,7.163594]
[1744632023887,6.01873,1675.4,1675.1,13.133254]
[1744632024091,6.01873,1675.4,1675.1,7.163594]
[1744632024297,6.01873,1675.4,1675.1,5.96966]
[1744632024471,0.05,1675.4,1675.2,0.05968807]
[1744632024659,0.05,1675.4,1675.2,5.9694]
[1744632025597,0.05,1675.4,1675.2,6.02908808]
[1744632026091,0.05,1675.4,1675.2,5.9694]
[1744632026493,0.05,1675.4,1675.2,6.02908809]
[1744632026861,0.05,1675.4,1675.3,5.96908]
[1744632029075,0.05,1675.4,1675.3,6.02876103]
[1744632029274,0.05,1675.4,1675.3,5.96908]
[1744632030225,0.05,1675.4,1675.2,7.99003681]
[1744632030532,0.05,1675.4,1675.0,0.8055]
[1744632030808,6.01885,1675.4,1675.1,5.96966]
[1744632030971,11.98785,1675.4,1675.1,5.96966]
[1744632031375,0.05,1675.4,1675.1,11.99903098]
[1744632031576,6.01881,1675.4,1675.1,6.02935098]
[1744632031775,0.05,1675.4,1675.2,0.6029351]
[1744632032003,6.01873,1675.4,1675.2,0.6029351]
[1744632032197,11.98759,1675.4,1675.2,0.6029351]
[1744632032372,0.05,1675.4,1675.3,5.96908]
[1744632035005,0.05,1675.4,1675.3,6.74848]
[1744632035306,0.7762,1676.0,1675.8,5.96713]
[1744632035506,6.73427,1676.2,1675.6,5.96781]
[1744632035724,5.96727,1675.9,1675.5,6.73599]
[1744632035922,5.96776,1675.7,1675.4,5.96861]
[1744632036216,0.7894,1675.8,1675.4,5.96861]
[1744632036217,0.7894,1675.8,1675.4,5.9686]
[1744632036417,12.7245,1675.8,1675.4,11.99687834]
[1744632036586,12.7245,1675.8,1675.4,11.9372]
[1744632036927,5.96745,1675.8,1675.5,6.75657]
[1744632037220,0.8054,1675.7,1675.4,11.93723]
[1744632037404,0.8054,1675.7,1675.5,6.02802719]
[1744632037590,0.8054,1675.7,1675.5,5.96835]
[1744632037795,6.77311,1675.7,1675.4,11.93721]
[1744632037998,5.96745,1675.8,1675.5,5.96836]
[1744632038411,5.96745,1675.8,1675.5,11.9366]
[1744632039638,6.77402,1675.9,1675.6,5.96785]
[1744632039934,6.77402,1675.9,1675.5,0.0596782]
[1744632039935,0.807,1675.9,1675.5,0.8570782]
[1744632040122,0.8212,1676.3,1676.1,5.96592]
[1744632040432,0.8212,1676.3,1675.7,0.7974]
[1744632040433,5.96612,1676.2,1675.7,0.7974]
[1744632040644,5.96673,1676.0,1675.7,0.7974]
[1744632040823,5.96812,1675.6,1675.3,6.76619]
[1744632041132,14.93566,1675.7,1675.3,12.73511]
[1744632041442,7.19281204,1675.9,1675.3,0.7974]
[1744632041609,5.9678,1675.7,1675.3,6.76625]
[1744632041811,5.96738,1675.8,1675.3,1.77172757]
[1744632042160,11.93502,1675.8,1675.4,11.93714]
[1744632042306,5.96794,1675.7,1675.3,6.76643]
[1744632042623,5.96794,1675.7,1675.4,5.96858]
[1744632043022,5.96794,1675.7,1675.4,5.96857]
[1744632043239,5.96736,1675.8,1675.5,5.96822]
[1744632043557,5.96765,1675.7,1675.4,5.9686]
[1744632043735,5.96765,1675.7,1675.4,13.210684]
[1744632043927,5.96765,1675.7,1675.4,7.242074]
[1744632044131,5.96765,1675.7,1675.4,1.273504]
[1744632044457,5.96765,1675.7,1675.4,7.242224]
[1744632044798,6.73008,1675.8,1675.4,13.210694]
[1744632045071,5.96767,1675.7,1675.4,7.242024]
[1744632045275,5.96767,1675.7,1675.4,11.93714]
[1744632045477,0.7627,1675.8,1675.6,5.96774]
[1744632045676,0.7627,1675.8,1675.3,3.77442573]
[1744632045984,0.7627,1675.8,1675.5,5.96819]
[1744632046283,5.96766,1675.7,1675.4,11.93726]
[1744632046581,6.73018,1675.8,1675.5,5.96825]
[1744632046727,0.7829,1676.0,1675.5,0.8174]
[1744632046931,5.9671,1675.9,1675.6,5.96785]
[1744632047165,5.9671,1675.9,1675.6,11.93569]
[1744632047364,0.7829,1676.0,1675.8,5.96715]
[1744632047549,0.7829,1676.0,1675.7,11.9351]
[1744632047749,0.7829,1676.0,1675.7,5.9675]
[1744632047944,5.96629,1676.1,1675.7,11.93502]
[1744632048230,5.96624,1676.1,1675.7,0.8069]
[1744632048579,5.96662,1676.0,1675.7,11.93501]
[1744632048747,5.96662,1676.0,1675.7,5.9675]
[1744632049581,11.93346,1676.0,1675.6,13.211129]
[1744632049733,6.76406,1675.9,1675.6,5.9679]
[1744632050234,12.73118,1675.9,1675.6,5.9679]
[1744632050899,6.76406,1675.9,1675.6,5.9679]
[1744632051192,0.797,1675.9,1675.7,5.96753]
[1744632051345,0.797,1675.9,1675.6,7.16152]
[1744632051547,0.797,1675.9,1675.6,7.16157]
[1744632051776,0.797,1675.9,1675.6,5.96795]
[1744632051978,0.797,1675.9,1675.7,5.96743]
[1744632052188,0.797,1675.9,1675.5,6.02796349]
[1744632052189,6.76402,1675.9,1675.6,5.96789]
[1744632052490,0.797,1675.9,1675.7,5.96764]
[1744632052696,0.797,1675.9,1675.7,5.96755]
[1744632052876,0.7707,1676.0,1675.7,7.161072]
[1744632053042,0.7707,1676.0,1675.7,5.96753]
[1744632053689,6.73741,1676.0,1675.7,5.96753]
[1744632054315,12.70426,1676.0,1675.7,5.96753]
[1744632054589,6.73741,1676.0,1675.7,5.96751]
[1744632055181,0.7707,1676.0,1675.7,11.93503]
[1744632055492,0.7707,1676.0,1675.8,7.160703]
[1744632055680,0.7707,1676.0,1675.8,1.193503]
[1744632055885,0.7707,1676.0,1675.8,5.96726]
[1744632056095,5.96592,1676.2,1676.0,5.96627]
[1744632056096,0.7887,1676.2,1676.0,5.96627]
[1744632056497,0.7887,1676.2,1675.9,5.96684]
[1744632056498,6.75482,1676.2,1675.8,11.93433]
[1744632056800,5.96633,1676.1,1675.8,5.96713]
[1744632057011,5.96633,1676.1,1675.8,11.93431]
[1744632057201,5.96633,1676.1,1675.9,1.193431]
[1744632057407,12.72085,1676.2,1675.9,7.160281]
[1744632057706,12.72085,1676.2,1675.7,5.96762]
[1744632057707,5.96675,1676.0,1675.7,5.96762]
[1744632057911,5.96624,1676.1,1675.7,5.96765]
[1744632058187,11.93268,1676.1,1675.8,5.96717]
[1744632058609,5.96624,1676.1,1675.8,5.96717]
[1744632058910,11.9326,1676.1,1675.8,7.16661587]
[1744632059112,11.9326,1676.1,1675.8,1.19944587]
[1744632059313,5.96624,1676.1,1675.8,1.19944587]
[1744632059498,11.93262,1676.1,1675.8,1.19944587]
[1744632059685,11.93262,1676.1,1675.7,5.96752]
[1744632060009,0.7887,1676.2,1676.0,5.9663]
[1744632060221,0.7887,1676.2,1676.0,5.96653]
[1744632060514,5.96587,1676.2,1675.9,12.68815]
[1744632060681,5.96587,1676.2,1675.8,6.72172]
[1744632060880,6.75512,1676.1,1675.9,0.672172]
[1744632061081,6.75503,1676.1,1675.9,0.672172]
[1744632061413,6.75504,1676.1,1675.9,0.672172]
[1744632062628,12.72153,1676.1,1675.8,5.96727]
[1744632063355,6.75504,1676.1,1675.8,5.96727]
[1744632063642,6.75504,1676.1,1675.8,5.96719]
[1744632063862,6.77142,1675.8,1675.4,5.96862]
[1744632064143,0.804,1675.8,1675.6,5.9679]
[1744632064316,0.804,1675.9,1675.7,6.56444]
[1744632064643,6.77096,1675.9,1675.6,11.93581]
[1744632064819,12.73812,1675.9,1675.6,5.9679]
[1744632065016,5.96739,1675.8,1675.5,5.96828]
[1744632065221,5.96766,1675.7,1675.4,11.93721]
[1744632065447,11.93502,1675.8,1675.4,11.93721]
[1744632065612,11.93502,1675.8,1675.5,1.193721]
[1744632066013,5.9682,1675.6,1675.3,6.76634]
[1744632066414,11.93555,1675.7,1675.4,0.05968124]
[1744632066716,11.93555,1675.7,1675.3,12.73529]
[1744632067245,5.96774,1675.7,1675.4,6.02831125]
[1744632067446,11.93556,1675.7,1675.4,6.02831125]
[1744632067617,11.93556,1675.7,1675.4,7.30778337]
[1744632067818,11.93556,1675.7,1675.4,7.24810212]
[1744632068019,5.96804,1675.6,1675.4,1.27947212]
[1744632068634,5.96836,1675.5,1675.2,11.93873]
[1744632069034,5.96804,1675.6,1675.3,6.02865345]
[1744632069347,5.96767,1675.7,1675.4,5.96862]
[1744632069574,6.78047,1675.8,1675.4,6.73611]
[1744632069715,12.7479,1675.8,1675.4,0.7675]
[1744632070048,12.74791,1675.8,1675.5,5.96826]
[1744632070232,6.78047,1675.8,1675.5,13.26664725]
[1744632070439,5.9678,1675.7,1675.5,1.270442]
[1744632071847,11.93568,1675.7,1675.5,1.270442]
[1744632072014,11.93568,1675.7,1675.4,5.9686]
[1744632072221,5.9682,1675.6,1675.3,6.73651]
[1744632072442,12.69615,1675.5,1675.2,8.94638573]
[1744632072733,6.7277,1675.5,1675.2,5.96933]
[1744632072965,6.72728,1675.6,1675.3,12.534893]
[1744632073120,6.72728,1675.6,1675.3,0.596933]
[1744632073340,6.72728,1675.6,1675.3,12.534833]
[1744632073538,6.72728,1675.6,1675.3,6.565883]
[1744632073991,12.69542,1675.6,1675.3,6.565883]
[1744632074144,6.72728,1675.6,1675.3,6.565883]
[1744632074344,12.69548,1675.6,1675.3,6.565883]
[1744632074881,5.96841,1675.5,1675.2,5.96935]
[1744632075170,11.93702,1675.5,1675.2,5.96935]
[1744632075373,5.96898,1675.4,1675.1,6.73716]
[1744632075778,5.96843,1675.5,1675.2,5.96921]
[1744632076079,12.69546,1675.6,1675.3,5.96895]
[1744632076440,6.7273,1675.6,1675.3,11.93793]
[1744632076641,12.69546,1675.6,1675.3,5.96895]
[1744632076874,12.69564,1675.6,1675.3,7.16880662]
[1744632077089,5.96872,1675.4,1675.1,6.7372]
[1744632077384,11.93761,1675.4,1675.1,6.7372]
[1744632077880,5.96872,1675.4,1675.1,6.7372]
[1744632078079,11.93759,1675.4,1675.1,6.7372]
[1744632078247,11.93759,1675.4,1675.1,8.00793]
[1744632078456,5.96872,1675.4,1675.1,8.00793]
[1744632078659,0.763,1675.4,1675.1,1.27073]
[1744632078857,11.93872,1675.3,1675.0,5.9701]
[1744632079048,5.96936,1675.3,1675.0,5.9701]
[1744632079252,5.96921,1675.3,1674.9,6.74209]
[1744632079453,5.96955,1675.2,1674.9,6.74209]
[1744632079765,12.70069,1675.4,1675.1,5.9697]
[1744632080276,6.73182,1675.4,1675.1,13.133338]
[1744632080479,6.73182,1675.4,1675.1,13.133328]
[1744632080854,6.73182,1675.4,1675.1,7.163638]
[1744632081053,6.73182,1675.4,1675.1,13.133318]
[1744632081291,6.73182,1675.4,1675.1,7.163638]
[1744632081779,5.96882,1675.4,1675.2,0.7163638]
[1744632082375,6.77246,1675.5,1675.2,0.7163638]
[1744632082579,6.77246,1675.5,1675.1,7.22326686]
[1744632082580,12.74118,1675.5,1675.1,7.22326686]
[1744632082780,5.96877,1675.4,1675.1,13.133258]
[1744632082985,5.96877,1675.4,1675.1,7.163578]
[1744632083292,11.93763,1675.4,1675.1,7.163578]
[1744632083484,5.96877,1675.4,1675.1,13.133268]
[1744632083666,5.96877,1675.4,1675.2,1.3133268]
[1744632084464,6.77246,1675.5,1675.2,1.3133268]
[1744632084693,12.74117,1675.5,1675.2,1.3133268]
[1744632084856,6.77246,1675.5,1675.2,7.2827268]
[1744632085059,0.7595,1675.6,1675.3,6.02863883]
[1744632085271,6.72732,1675.7,1675.4,12.54018388]
[1744632085469,6.72732,1675.7,1675.5,5.96833]
[1744632085470,0.7595,1675.7,1675.5,5.96833]
[1744632085684,5.9674,1675.8,1675.4,13.37332388]
[1744632085883,5.96766,1675.7,1675.4,7.40468388]
[1744632086159,5.96766,1675.7,1675.4,13.37327388]
[1744632086361,5.96766,1675.7,1675.5,1.33732739]
[1744632086585,5.96766,1675.7,1675.4,13.37327388]
[1744632087392,5.96738,1675.8,1675.5,6.02800751]
[1744632087559,5.96665,1676.0,1675.7,5.96745]
[1744632087754,3.8198,1676.1,1675.5,6.78717]
[1744632087959,5.96736,1675.8,1675.5,13.49442339]
[1744632088430,5.96678,1676.0,1675.6,6.02765214]
[1744632088712,5.96696,1675.9,1675.6,5.96798]
[1744632088883,11.93338,1676.0,1675.6,11.93588]
[1744632089213,5.96704,1675.9,1675.6,5.9679]
[1744632089512,11.93355,1676.0,1675.7,0.59679]
[1744632089812,5.96666,1676.0,1675.6,5.96789]
[1744632089989,5.96666,1676.0,1675.6,0.05967115]
[1744632090196,6.78611,1676.1,1675.8,5.96721]
[1744632090393,6.73305,1676.3,1675.9,0.05966824]
[1744632090602,6.73305,1676.3,1675.8,6.77313]
[1744632090603,5.96635,1676.1,1675.8,6.77313]
[1744632090922,6.73403,1676.0,1675.8,0.677313]
[1744632091681,0.7674,1676.0,1675.8,6.644543]
[1744632092329,6.73399,1676.0,1675.7,5.96752]
[1744632092623,5.96633,1676.1,1675.8,0.05966663]
[1744632092916,0.7711,1675.9,1675.6,11.93583]
[1744632093117,0.7711,1675.9,1675.7,5.9676]
[1744632093291,6.79344,1676.0,1675.7,5.9676]
[1744632093499,6.79344,1676.0,1675.7,7.161149]
[1744632093722,12.76018,1676.0,1675.7,7.161149]
[1744632093907,6.79334,1676.0,1675.7,7.161149]
[1744632094715,12.76017,1676.0,1675.7,1.193549]
[1744632094915,6.79334,1676.0,1675.7,1.193549]
[1744632095120,12.76008,1676.0,1675.7,7.161159]
[1744632095434,6.79334,1676.0,1675.7,7.161159]
[1744632095725,9.38515066,1676.3,1675.9,5.96689]
[1744632095726,5.96594,1676.2,1675.9,5.96689]
[1744632095897,5.96594,1676.2,1675.8,7.4961559]
[1744632096094,5.96623,1676.1,1675.8,13.4633359]
[1744632096315,5.96594,1676.2,1675.8,7.4960959]
[1744632096521,5.96674,1676.0,1675.8,0.8128]
[1744632096834,5.96624,1676.1,1675.8,0.8128]
[1744632097129,11.93265,1676.1,1675.7,12.70939]
[1744632097429,2.97702573,1676.2,1675.7,12.70939]
[1744632097430,5.96588,1676.2,1675.9,5.96684]
[1744632097634,5.96588,1676.2,1675.9,11.93362]
[1744632097927,5.96588,1676.2,1675.9,7.16610845]
[1744632098128,0.05,1676.4,1676.3,5.96551]
[1744632098305,0.05,1676.4,1676.3,13.29500179]
[1744632098306,1e-05,1676.4,1676.3,13.29500179]
[1744632098505,1e-05,1676.4,1676.3,16.23536146]
[1744632099205,3.95735591,1677.0,1676.9,6.72428]
[1744632099407,3.95735591,1677.0,1676.9,8.35039326]
[1744632099607,5.96374,1676.8,1676.1,5.96596]
[1744632099805,0.7576,1676.6,1676.1,5.96616]
[1744632100001,0.7576,1676.6,1675.9,5.9668]
[1744632100002,5.96575,1676.3,1675.9,5.9668]
[1744632100202,5.96529,1676.4,1676.0,6.02599571]
[1744632100505,5.96554,1676.3,1676.0,5.96634]
[1744632100826,5.96529,1676.4,1676.0,13.126121]
[1744632101042,11.93064,1676.4,1676.0,7.159661]
[1744632101220,5.96555,1676.3,1676.0,5.96634]
[1744632101616,0.7904,1676.2,1675.8,6.72817]
[1744632101822,6.75649,1676.2,1675.8,6.72805]
[1744632102028,6.75649,1676.2,1675.8,12.75487075]
[1744632102346,5.96634,1676.1,1675.9,1.27548708]
[1744632102540,6.75634,1676.2,1675.9,1.27548708]
[1744632103046,5.96627,1676.1,1675.9,1.27548708]
[1744632103342,5.96646,1676.1,1675.8,0.7609]
[1744632103535,5.96677,1676.0,1675.6,6.71794]
[1744632103731,5.96697,1675.9,1675.6,0.75]
[1744632103933,5.96734,1675.8,1675.6,0.75]
[1744632104242,11.93424,1675.9,1675.6,1.421833]
[1744632104452,5.96736,1675.8,1675.5,5.96821]
[1744632104620,11.93486,1675.8,1675.4,7.32262388]
[1744632104948,5.96812,1675.6,1675.2,5.96939]
[1744632105145,5.96767,1675.7,1675.1,0.7511]
[1744632105344,5.96767,1675.7,1675.4,5.96857]
[1744632105643,11.93411,1675.9,1675.6,5.968]
[1744632106016,5.96698,1675.9,1675.6,5.968]
[1744632106346,9.74687,1676.0,1675.6,7.161477]
[1744632106542,5.96714,1675.9,1675.5,5.96824]
[1744632106747,3.7801,1676.0,1675.7,5.9676]
[1744632106748,9.74681,1676.0,1675.7,5.9676]
[1744632106943,9.74681,1676.0,1675.6,5.9679]
[1744632107198,11.93431,1675.9,1675.5,5.96831]
[1744632107340,5.9673,1675.8,1675.5,5.96831]
[1744632107528,5.9673,1675.8,1675.5,7.45971257]
[1744632107727,5.96707,1675.9,1675.6,5.968]
[1744632107929,11.93422,1675.9,1675.5,13.42796257]
[1744632108247,5.96707,1675.9,1675.6,5.96798]
[1744632108462,15.7136,1676.0,1675.6,5.96788]
[1744632108669,11.9342,1675.9,1675.6,5.96788]
[1744632108837,5.96732,1675.8,1675.5,1.49140257]
[1744632109043,11.93495,1675.8,1675.4,11.93725]
[1744632109431,11.9348,1675.8,1675.5,5.96835]
[1744632110126,5.96818,1675.6,1675.2,5.96922]
[1744632110332,5.9685,1675.5,1675.2,5.96922]
[1744632110543,5.9685,1675.5,1675.2,7.240423]
[1744632110740,11.9377,1675.4,1675.1,6.74281]
[1744632110930,5.96909,1675.3,1675.0,5.97011]
[1744632111133,5.96973,1675.2,1674.9,0.7909]
[1744632111533,5.96989,1675.1,1674.7,6.76196]
[1744632111839,6.74423,1675.7,1674.8,0.7661]
[1744632112037,6.74423,1675.7,1675.2,0.7661]
[1744632112038,3.0,1675.6,1675.2,0.7661]
[1744632112244,5.96852,1675.5,1675.2,0.7661]
[1744632112658,11.93718,1675.5,1675.1,5.96952]
[1744632112844,5.96852,1675.5,1675.2,5.96938]
[1744632113661,5.96852,1675.5,1675.1,5.96974]
[1744632113865,5.96985,1675.1,1674.8,5.97063]
[1744632114241,5.96985,1675.1,1674.8,6.03033141]
[1744632114445,5.96985,1675.1,1674.8,5.97063]
[1744632114867,5.97065,1674.9,1674.6,5.97145]
[1744632115166,5.97096,1674.8,1674.5,6.75067]
[1744632115348,11.94125,1674.9,1674.5,8.08245367]
[1744632115550,11.94125,1674.9,1674.5,14.05426367]
[1744632115869,5.97043,1675.0,1674.6,11.94302]
[1744632116048,5.97043,1675.0,1674.6,5.97151]
[1744632116671,5.97095,1674.8,1674.5,8.022963]
[1744632116870,5.97024,1675.0,1674.6,5.9714]
[1744632117071,5.97061,1674.9,1674.6,6.7796204]
[1744632117270,11.94137,1674.9,1674.6,0.8082204]
[1744632117471,5.97087,1674.8,1674.6,0.8082204]
[1744632117773,11.94119,1674.9,1674.6,0.8082204]
[1744632117962,5.9705,1674.9,1674.6,6.7797804]
[1744632118271,5.97089,1674.8,1674.6,0.8082204]
[1744632118474,11.94134,1674.9,1674.6,0.8082204]
[1744632118976,5.9709,1674.8,1674.6,0.8082204]
[1744632119476,11.94134,1674.9,1674.6,0.8082204]
[1744632119771,5.97087,1674.8,1674.6,0.8082204]
[1744632119985,5.97087,1674.8,1674.5,14.05435408]
[1744632120156,5.97087,1674.8,1674.5,13.994643]
[1744632120358,5.9705,1674.9,1674.6,5.97155]
[1744632121066,0.7918,1675.1,1674.9,5.97037]
[1744632121254,1.467934,1675.1,1674.5,8.022893]
[1744632121447,11.94116,1674.9,1674.6,5.97151]
[1744632121648,6.76896,1674.8,1674.4,5.97219]
[1744632121951,5.97163,1674.6,1674.3,8.0390673]
[1744632122151,5.97163,1674.6,1674.3,7.2740673]
[1744632122759,5.97163,1674.6,1674.3,13.2465873]
[1744632122976,5.97163,1674.6,1674.3,5.97252]
[1744632123378,7.445706,1674.8,1674.5,5.97189]
[1744632123561,5.97143,1674.7,1674.4,5.97217]
[1744632123746,6.76874,1674.8,1674.5,5.97187]
[1744632123951,0.7978,1674.8,1674.6,5.97141]
[1744632124265,3.7857,1675.0,1674.8,5.9706]
[1744632124473,3.7857,1675.0,1674.8,11.94133]
[1744632124661,0.7857,1675.0,1674.9,5.9705]
[1744632124862,5.96948,1675.2,1675.0,5.97012]
[1744632124863,0.7773,1675.2,1675.0,5.97012]
[1744632125061,6.74606,1675.4,1675.0,5.97001]
[1744632125259,5.96921,1675.3,1675.0,5.97001]
[1744632125465,5.96921,1675.3,1675.0,11.94004]
[1744632125868,9.74616,1675.4,1675.1,5.96975]
[1744632126081,9.74616,1675.4,1675.1,11.93944]
[1744632126282,9.74616,1675.4,1675.1,5.96969]
[1744632126477,9.74616,1675.4,1675.1,11.93938]
[1744632126786,9.74616,1675.4,1675.1,5.96969]
[1744632127155,5.96966,1675.2,1674.9,5.97046]
[1744632127473,5.9708,1674.9,1674.5,5.97171]
[1744632127677,5.97088,1674.8,1674.5,11.94353]
[1744632127883,5.9708,1674.9,1674.5,11.94353]
[1744632128059,5.9708,1674.9,1674.6,5.97155]
[1744632128256,5.97169,1674.6,1674.2,6.7308]
[1744632128461,11.94491,1674.4,1674.1,6.02322]
[1744632128774,0.794,1674.5,1674.1,0.05]
[1744632129088,0.794,1674.5,1674.2,5.97291]
[1744632129272,6.76593,1674.5,1674.2,5.97291]
[1744632129476,0.794,1674.5,1674.2,6.575151]
[1744632129677,5.97174,1674.6,1674.3,5.97254]
[1744632129870,9.78805,1674.7,1674.4,5.97222]
[1744632130169,15.75957,1674.7,1674.3,5.97256]
[1744632130480,5.97227,1674.5,1674.2,0.602291]
[1744632130656,5.973,1674.2,1674.1,0.05]
[1744632131388,8.97236,1674.4,1674.1,0.05]
[1744632131590,6.78878,1674.5,1674.1,6.02318]
[1744632131791,0.8168,1674.7,1674.4,5.97215]